fUST/lending_fUST_20240904
["ID","MTS","AMOUNT","RATE_DAILY","PERIOD"]
[337119784,1725442257079,-500.0,0.00027671,2]
[337119785,1725442257089,-500.0,0.00027671,2]
[337119786,1725442257099,-500.0,0.00027671,2]
[337119787,1725442257108,-500.0,0.00027671,2]
[337119788,1725442257118,-500.0,0.00027671,2]
[337119789,1725442257128,-500.0,0.00027671,2]
[337119790,1725442257137,-500.0,0.00027671,2]
[337119791,1725442257149,-500.0,0.00027671,2]
[337119792,1725442257159,-500.0,0.00027671,2]
[337119793,1725442257170,-500.0,0.00027671,2]
[337119794,1725442257180,-500.0,0.00027671,2]
[337119795,1725442257190,-500.0,0.00027671,2]
[337119796,1725442257200,-500.0,0.00027671,2]
[337119797,1725442257211,-500.0,0.00027671,2]
[337119798,1725442257221,-500.0,0.00027671,2]
[337119799,1725442257231,-500.0,0.00027671,2]
[337119800,1725442257243,-500.0,0.00027671,2]
[337119801,1725442257252,-500.0,0.00027671,2]
[337119802,1725442257262,-153.06315927,0.00027671,2]
[337119803,1725442257273,-500.0,0.00027671,2]
[337119804,1725442257284,-500.0,0.00027671,2]
[337119805,1725442257293,-500.0,0.00027671,2]
[337119806,1725442257303,-500.0,0.00027671,2]
[337119807,1725442257313,-500.0,0.00027671,2]
[337119808,1725442257324,-500.0,0.00027671,2]
[337119809,1725442257334,-500.0,0.00027671,2]
[337119810,1725442257347,-500.0,0.00027671,2]
[337119811,1725442257358,-500.0,0.00027671,2]
[337119812,1725442257367,-500.0,0.00027671,2]
[337119813,1725442257378,-500.0,0.00027671,2]
[337119814,1725442257390,-500.0,0.00027671,2]
[337119815,1725442257400,-500.0,0.00027671,2]
[337119816,1725442257410,-500.0,0.00027671,2]
[337119817,1725442257420,-303.8127338,0.00027671,2]
[337119818,1725442257431,-500.0,0.00027671,2]
[337119819,1725442257443,-500.0,0.00027671,2]
[337119820,1725442257453,-500.0,0.00027671,2]
[337119821,1725442257465,-500.0,0.00027671,2]
[337119822,1725442257475,-500.0,0.00027671,2]
[337119823,1725442257487,-500.0,0.00027671,2]
[337119824,1725442257498,-500.0,0.00027671,2]
[337119825,1725442257509,-500.0,0.00027671,2]
[337119826,1725442257522,-500.0,0.00027671,2]
[337119827,1725442257531,-500.0,0.00027671,2]
[337119828,1725442257540,-500.0,0.00027671,2]
[337119829,1725442257550,-500.0,0.00027671,2]
[337119830,1725442257560,-501.68875556,0.00027671,2]
[337119831,1725442257569,-500.0,0.00027671,2]
[337119832,1725442257579,-504.95889577,0.00027671,2]
[337119833,1725442257588,-480.23451203,0.00027671,2]
[337119834,1725442257597,-500.0,0.00027671,2]
[337119835,1725442257606,-500.0,0.00027671,2]
[337119836,1725442257615,-500.0,0.00027671,2]
[337119837,1725442257625,-500.0,0.00027671,2]
[337119838,1725442257634,-500.0,0.00027671,2]
[337119839,1725442257645,-500.0,0.00027671,2]
[337119840,1725442257655,-500.0,0.00027671,2]
[337119841,1725442257665,-500.0,0.00027671,2]
[337119842,1725442257676,-500.0,0.00027671,2]
[337119843,1725442257686,-500.0,0.00027671,2]
[337119844,1725442257697,-500.0,0.00027671,2]
[337119845,1725442257709,-500.0,0.00027671,2]
[337119846,1725442257721,-1294.59,0.00027671,2]
[337119847,1725442257732,-500.0,0.00027671,2]
[337119848,1725442257743,-500.0,0.00027671,2]
[337119849,1725442257762,-500.0,0.00027671,2]
[337119850,1725442257780,-500.0,0.00027671,2]
[337119851,1725442257794,-382.7597729,0.00027671,2]
[337119852,1725442257811,-500.0,0.00027671,2]
[337119853,1725442257832,-500.0,0.00027671,2]
[337119854,1725442257847,-213.03245343,0.00027671,2]
[337119855,1725442257863,-500.0,0.00027671,2]
[337119856,1725442257878,-500.0,0.00027671,2]
[337119857,1725442257892,-500.0,0.00027671,2]
[337119858,1725442257906,-500.0,0.00027671,2]
[337119859,1725442257920,-427.92743355,0.00027671,2]
[337119860,1725442257933,-500.0,0.00027671,2]
[337119861,1725442257946,-500.0,0.00027671,2]
[337119862,1725442257960,-500.0,0.00027671,2]
[337119863,1725442257974,-500.0,0.00027671,2]
[337119864,1725442257994,-500.0,0.00027671,2]
[337119865,1725442258009,-500.0,0.00027671,2]
[337119866,1725442258023,-553.10953665,0.00027671,2]
[337119867,1725442258035,-500.0,0.00027671,2]
[337119868,1725442258049,-500.0,0.00027671,2]
[337119869,1725442258070,-1883.0,0.00027671,2]
[337119870,1725442258082,-500.0,0.00027671,2]
[337119871,1725442258096,-500.0,0.00027671,2]
[337119872,1725442258111,-500.0,0.00027671,2]
[337119873,1725442258123,-503.05006732,0.00027671,2]
[337119874,1725442258135,-500.0,0.00027671,2]
[337119875,1725442258148,-533.82,0.00027671,2]
[337119876,1725442258161,-500.0,0.00027671,2]
[337119877,1725442258173,-757.1,0.00027671,2]
[337119878,1725442258185,-500.0,0.00027671,2]
[337119879,1725442258198,-500.0,0.00027671,2]
[337119880,1725442258212,-1443.32,0.00027671,2]
[337119881,1725442258228,-500.0,0.00027671,2]
[337119882,1725442258240,-503.30897936,0.00027671,2]
[337119883,1725442258255,-500.0,0.00027671,2]
[337119884,1725442258268,-500.0,0.00027671,2]
[337119885,1725442258282,-500.0,0.00027671,2]
[337119886,1725442258295,-500.0,0.00027671,2]
[337119887,1725442258307,-507.90396879,0.00027671,2]
[337119888,1725442258320,-500.0,0.00027671,2]
[337119889,1725442258333,-500.0,0.00027671,2]
[337119890,1725442258347,-500.0,0.00027671,2]
[337119891,1725442258360,-534.86031004,0.00027671,2]
[337119892,1725442258374,-919.4,0.00027671,2]
[337119893,1725442258388,-500.0,0.00027671,2]
[337119894,1725442258403,-277.81187765,0.00027671,2]
[337119895,1725442258418,-500.0,0.00027671,2]
[337119896,1725442258432,-518.91674723,0.00027671,2]
[337119897,1725442258445,-500.0,0.00027671,2]
[337119898,1725442258458,-500.0,0.00027671,2]
[337119899,1725442258474,-500.0,0.00027671,2]
[337119900,1725442258486,-500.0,0.00027671,2]
[337119901,1725442258499,-500.0,0.00027671,2]
[337119902,1725442258513,-500.0,0.00027671,2]
[337119903,1725442258527,-500.0,0.00027671,2]
[337119904,1725442258541,-500.0,0.00027671,2]
[337119905,1725442258555,-500.0,0.00027671,2]
[337119906,1725442258567,-500.0,0.00027671,2]
[337119907,1725442258582,-226.52253898,0.00027671,2]
[337119908,1725442258767,62.930005,0.00024658,2]
[337119915,1725443135145,-631.350909,0.00024658,2]
[337119916,1725443135168,-300.0,0.00024919,2]
[337119917,1725443135192,-592.32268921,0.00025225,2]
[337119918,1725443147108,-383.87983858,0.00025225,2]
[337119920,1725443226113,-300.0,0.00025224,2]
[337119921,1725443226136,-276.13041251,0.00025225,2]
[337119922,1725443229306,-450.0,0.00025225,2]
[337119923,1725443236109,-3825.80230281,0.00025225,2]
[337119924,1725443238121,-343.53607723,0.00025225,2]
[337119925,1725443249146,-4413.00833576,0.00025225,2]
[337119951,1725443432476,-131.75605449,0.00024658,2]
[337119976,1725443438671,-238.47178251,0.00024658,2]
[337119977,1725443438685,-300.0,0.00025224,2]
[337119978,1725443438695,-4059.80451069,0.00025225,2]
[337119992,1725443440785,-10555.51583321,0.00025225,2]
[337119993,1725443440795,-194.214044,0.00025371,2]
[337119994,1725443440804,-194.214044,0.00026032,2]
[337119995,1725443440814,-194.214044,0.00026693,2]
[337119996,1725443440824,-1300.0,0.000271,120]
[337119997,1725443440833,-198.83547574,0.00027273,2]
[337119998,1725443440842,-1000.0,0.00027277,2]
[337119999,1725443440852,-339.72,0.00027357,3]
[337120000,1725443440861,-500.0,0.00027366,2]
[337120001,1725443440871,-334.19243212,0.00027366,2]
[337120002,1725443440881,-500.0,0.00027366,2]
[337120003,1725443440890,-500.0,0.00027366,2]
[337120004,1725443440900,-165.35219313,0.00027366,2]
[337120005,1725443440910,-209.20324854,0.00027366,2]
[337120006,1725443440920,-11644.29466203,0.00027366,15]
[337120007,1725443440929,-142537.70555933,0.00027367,2]
[337120008,1725443440941,-5270.01570441,0.00027367,2]
[337120017,1725443443519,-302361.51185668,0.00027367,2]
[337120018,1725443443542,-67621.67510658,0.00027367,2]
[337120019,1725443443554,-500.0,0.00027397,2]
[337120020,1725443443565,-5431.35,0.00027397,2]
[337120021,1725443443574,-500.0,0.00027397,2]
[337120022,1725443443585,-500.0,0.00027397,2]
[337120023,1725443443595,-500.0,0.00027397,2]
[337120024,1725443443604,-500.0,0.00027397,2]
[337120025,1725443443615,-404.91014969,0.00027397,2]
[337120026,1725443443626,-500.0,0.00027397,2]
[337120027,1725443443636,-515.76136767,0.00027397,2]
[337120028,1725443443647,-500.0,0.00027397,2]
[337120029,1725443443657,-500.0,0.00027397,2]
[337120030,1725443443669,-500.0,0.00027397,2]
[337120031,1725443443681,-1094.86,0.00027397,2]
[337120032,1725443443691,-500.0,0.00027397,2]
[337120033,1725443443702,-3756.31,0.00027397,2]
[337120035,1725443443713,-500.0,0.00027397,2]
[337120037,1725443443722,-500.0,0.00027397,2]
[337120038,1725443443731,-500.0,0.00027397,2]
[337120039,1725443443740,-427.5,0.00027397,2]
[337120040,1725443443751,-500.0,0.00027397,2]
[337120041,1725443443763,-1873.82,0.00027397,2]
[337120042,1725443443773,-500.0,0.00027397,2]
[337120043,1725443443783,-1894.49,0.00027397,2]
[337120044,1725443443792,-1894.49,0.00027397,2]
[337120045,1725443443803,-1894.49,0.00027397,2]
[337120046,1725443443813,-1894.49,0.00027397,2]
[337120047,1725443443824,-1894.49,0.00027397,2]
[337120048,1725443443834,-1894.49,0.00027397,2]
[337120049,1725443443845,-1894.49,0.00027397,2]
[337120050,1725443443856,-1894.49,0.00027397,2]
[337120051,1725443443867,-1894.49,0.00027397,2]
[337120052,1725443443877,-1894.49,0.00027397,2]
[337120053,1725443443887,-1894.49,0.00027397,2]
[337120054,1725443443899,-500.0,0.00027397,2]
[337120055,1725443443910,-1894.49,0.00027397,2]
[337120056,1725443443921,-1894.49,0.00027397,2]
[337120057,1725443443932,-1894.49,0.00027397,2]
[337120058,1725443443944,-1894.49,0.00027397,2]
[337120059,1725443443956,-1894.49,0.00027397,2]
[337120060,1725443443966,-500.0,0.00027397,2]
[337120061,1725443443975,-1894.49,0.00027397,2]
[337120062,1725443443985,-1894.49,0.00027397,2]
[337120063,1725443443995,-1894.49,0.00027397,2]
[337120064,1725443444005,-1894.49,0.00027397,2]
[337120065,1725443444014,-1894.49,0.00027397,2]
[337120066,1725443444024,-1894.49,0.00027397,2]
[337120067,1725443444035,-1894.49,0.00027397,2]
[337120068,1725443444046,-500.0,0.00027397,2]
[337120069,1725443444056,-506.69109826,0.00027397,2]
[337120070,1725443444065,-1894.51625636,0.00027397,2]
[337120071,1725443444075,-500.0,0.00027397,2]
[337120072,1725443444084,-500.0,0.00027397,2]
[337120073,1725443444093,-500.0,0.00027397,2]
[337120074,1725443444103,-500.0,0.00027397,2]
[337120075,1725443444112,-500.0,0.00027397,2]
[337120076,1725443444121,-500.0,0.00027397,2]
[337120077,1725443444131,-500.0,0.00027397,2]
[337120078,1725443444140,-500.0,0.00027397,2]
[337120079,1725443444150,-500.0,0.00027397,2]
[337120080,1725443444160,-500.0,0.00027397,2]
[337120081,1725443444170,-500.0,0.00027397,2]
[337120082,1725443444180,-500.0,0.00027397,2]
[337120083,1725443444191,-500.0,0.00027397,2]
[337120084,1725443444200,-500.0,0.00027397,2]
[337120085,1725443444209,-504.95889577,0.00027397,2]
[337120086,1725443444219,-500.0,0.00027397,2]
[337120087,1725443444229,-268.37,0.00027397,2]
[337120088,1725443444239,-500.0,0.00027397,2]
[337120089,1725443444248,-500.0,0.00027397,2]
[337120090,1725443444258,-500.0,0.00027397,2]
[337120091,1725443444268,-500.0,0.00027397,2]
[337120092,1725443444278,-500.0,0.00027397,2]
[337120093,1725443444288,-500.0,0.00027397,2]
[337120094,1725443444297,-500.0,0.00027397,2]
[337120095,1725443444306,-500.0,0.00027397,2]
[337120096,1725443444315,-382.7597729,0.00027397,2]
[337120097,1725443444325,-500.0,0.00027397,2]
[337120098,1725443444335,-500.0,0.00027397,2]
[337120099,1725443444346,-500.0,0.00027397,2]
[337120100,1725443444356,-500.0,0.00027397,2]
[337120101,1725443444366,-500.0,0.00027397,2]
[337120102,1725443444376,-500.0,0.00027397,2]
[337120103,1725443444386,-553.10953665,0.00027397,2]
[337120104,1725443444396,-500.0,0.00027397,2]
[337120105,1725443444406,-502.31174423,0.00027397,2]
[337120106,1725443444420,-500.0,0.00027397,2]
[337120107,1725443444429,-500.0,0.00027397,2]
[337120108,1725443444440,-500.0,0.00027397,2]
[337120109,1725443444450,-519.65280557,0.00027397,2]
[337120110,1725443444462,-500.0,0.00027397,2]
[337120111,1725443444472,-500.0,0.00027397,2]
[337120112,1725443444482,-628.74,0.00027397,2]
[337120113,1725443444492,-500.0,0.00027397,2]
[337120114,1725443444503,-500.0,0.00027397,2]
[337120115,1725443444513,-391.50481083,0.00027397,2]
[337120116,1725443444524,-500.0,0.00027397,2]
[337120117,1725443444534,-500.0,0.00027397,2]
[337120118,1725443444544,-500.0,0.00027397,2]
[337120119,1725443444554,-500.0,0.00027397,2]
[337120120,1725443444564,-500.0,0.00027397,2]
[337120121,1725443444575,-500.0,0.00027397,2]
[337120122,1725443444585,-500.0,0.00027397,2]
[337120123,1725443444596,-1719.53,0.00027397,2]
[337120124,1725443444606,-500.0,0.00027397,2]
[337120125,1725443444615,-500.0,0.00027397,2]
[337120126,1725443444624,-500.0,0.00027397,2]
[337120127,1725443444635,-506.57535188,0.00027397,2]
[337120128,1725443444645,-500.0,0.00027397,2]
[337120129,1725443444656,-619.99089358,0.00027397,2]
[337120130,1725443444667,-500.0,0.00027397,2]
[337120131,1725443444677,-500.0,0.00027397,2]
[337120132,1725443444689,-507.90396879,0.00027397,2]
[337120133,1725443444701,-500.0,0.00027397,2]
[337120134,1725443444712,-500.0,0.00027397,2]
[337120135,1725443444724,-500.0,0.00027397,2]
[337120136,1725443444736,-500.0,0.00027397,2]
[337120137,1725443444747,-373.88883005,0.00027397,2]
[337120138,1725443444759,-500.0,0.00027397,2]
[337120139,1725443444770,-500.0,0.00027397,2]
[337120140,1725443444779,-500.0,0.00027397,2]
[337120141,1725443444789,-277.81187765,0.00027397,2]
[337120142,1725443444799,-500.0,0.00027397,2]
[337120143,1725443444811,-500.0,0.00027397,2]
[337120144,1725443444822,-500.0,0.00027397,2]
[337120145,1725443444833,-500.0,0.00027397,2]
[337120146,1725443444844,-500.0,0.00027397,2]
[337120147,1725443444854,-500.0,0.00027397,2]
[337120148,1725443444864,-500.0,0.00027397,2]
[337120149,1725443444874,-500.0,0.00027397,2]
[337120150,1725443444885,-500.0,0.00027397,2]
[337120151,1725443444895,-500.0,0.00027397,2]
[337120152,1725443444906,-500.0,0.00027397,2]
[337120153,1725443444918,-500.0,0.00027397,2]
[337120154,1725443444931,-303.8127338,0.00027397,2]
[337120155,1725443444947,-500.0,0.00027397,2]
[337120156,1725443444959,-500.0,0.00027397,2]
[337120157,1725443444970,-500.0,0.00027397,2]
[337120158,1725443444980,-611.26974093,0.00027397,2]
[337120159,1725443444991,-500.0,0.00027397,2]
[337120160,1725443445002,-500.0,0.00027397,2]
[337120161,1725443445012,-500.0,0.00027397,2]
[337120162,1725443445025,-501.68875556,0.00027397,2]
[337120163,1725443445036,-500.0,0.00027397,2]
[337120164,1725443445045,-500.0,0.00027397,2]
[337120165,1725443445055,-502.90360956,0.00027397,2]
[337120166,1725443445065,-500.0,0.00027397,2]
[337120167,1725443445075,-500.0,0.00027397,2]
[337120168,1725443445084,-500.0,0.00027397,2]
[337120169,1725443445093,-500.0,0.00027397,2]
[337120170,1725443445103,-500.0,0.00027397,2]
[337120171,1725443445112,-500.0,0.00027397,2]
[337120172,1725443445122,-500.0,0.00027397,2]
[337120173,1725443445131,-500.0,0.00027397,2]
[337120174,1725443445140,-500.0,0.00027397,2]
[337120175,1725443445150,-500.0,0.00027397,2]
[337120176,1725443445159,-500.0,0.00027397,2]
[337120177,1725443445169,-500.0,0.00027397,2]
[337120178,1725443445178,-500.0,0.00027397,2]
[337120179,1725443445188,-500.0,0.00027397,2]
[337120180,1725443445197,-500.0,0.00027397,2]
[337120181,1725443445206,-500.0,0.00027397,2]
[337120182,1725443445216,-500.0,0.00027397,2]
[337120183,1725443445226,-500.0,0.00027397,2]
[337120184,1725443445235,-500.0,0.00027397,2]
[337120185,1725443445244,-500.0,0.00027397,2]
[337120186,1725443445254,-500.0,0.00027397,2]
[337120187,1725443445263,-500.0,0.00027397,2]
[337120188,1725443445273,-164.48873905,0.00027397,2]
[337120189,1725443445281,-500.0,0.00027397,2]
[337120190,1725443445290,-500.0,0.00027397,30]
[337120191,1725443445299,-500.0,0.00027397,2]
[337120192,1725443445309,-500.0,0.00027397,2]
[337120193,1725443445318,-500.0,0.00027397,2]
[337120194,1725443445327,-500.0,0.00027397,2]
[337120195,1725443445336,-500.0,0.00027397,2]
[337120196,1725443445345,-500.0,0.00027397,2]
[337120197,1725443445354,-500.0,0.00027397,2]
[337120198,1725443445363,-575.36315368,0.00027397,2]
[337120199,1725443445373,-506.88496892,0.00027397,2]
[337120200,1725443445382,-500.0,0.00027397,2]
[337120201,1725443445392,-534.86031004,0.00027397,2]
[337120202,1725443445401,-500.0,0.00027397,2]
[337120203,1725443445412,-500.0,0.00027397,2]
[337120204,1725443445424,-500.0,0.00027397,2]
[337120205,1725443445434,-500.0,0.00027397,2]
[337120206,1725443445444,-500.0,0.00027397,2]
[337120207,1725443445454,-500.0,0.00027397,2]
[337120208,1725443445467,-500.0,0.00027397,2]
[337120209,1725443445476,-500.0,0.00027397,2]
[337120210,1725443445487,-500.0,0.00027397,2]
[337120211,1725443445497,-500.0,0.00027397,2]
[337120212,1725443445507,-500.0,0.00027397,2]
[337120213,1725443445516,-500.0,0.00027397,2]
[337120214,1725443445526,-500.0,0.00027397,2]
[337120215,1725443445535,-500.0,0.00027397,2]
[337120216,1725443445544,-500.0,0.00027397,2]
[337120217,1725443445554,-171.08901171,0.00027397,2]
[337120218,1725443445563,-500.0,0.00027397,2]
[337120219,1725443445572,-500.0,0.00027397,2]
[337120220,1725443445582,-500.0,0.00027397,2]
[337120221,1725443445591,-500.0,0.00027397,2]
[337120222,1725443445601,-500.0,0.00027397,2]
[337120223,1725443445610,-500.0,0.00027397,2]
[337120224,1725443445619,-500.0,0.00027397,2]
[337120225,1725443445628,-500.0,0.00027397,2]
[337120226,1725443445638,-500.0,0.00027397,2]
[337120227,1725443445648,-500.0,0.00027397,2]
[337120228,1725443445656,-500.0,0.00027397,2]
[337120229,1725443445666,-500.0,0.00027397,2]
[337120230,1725443445675,-500.0,0.00027397,2]
[337120231,1725443445684,-500.0,0.00027397,2]
[337120232,1725443445693,-500.0,0.00027397,2]
[337120233,1725443445702,-500.0,0.00027397,2]
[337120234,1725443445712,-500.0,0.00027397,2]
[337120235,1725443445721,-500.0,0.00027397,2]
[337120236,1725443445730,-500.0,0.00027397,2]
[337120237,1725443445739,-500.0,0.00027397,2]
[337120238,1725443445748,-503.8684005,0.00027397,2]
[337120239,1725443445757,-500.0,0.00027397,2]
[337120240,1725443445766,-500.0,0.00027397,2]
[337120241,1725443445778,-500.0,0.00027397,2]
[337120242,1725443445788,-500.0,0.00027397,2]
[337120243,1725443445798,-500.0,0.00027397,2]
[337120244,1725443445807,-500.0,0.00027397,2]
[337120245,1725443445816,-500.0,0.00027397,2]
[337120246,1725443445826,-500.0,0.00027397,2]
[337120247,1725443445835,-485.13096857,0.00027397,2]
[337120253,1725443446623,-148.17607309,0.00027387,3]
[337120254,1725443446635,-134.92392691,0.00027387,3]
[337120255,1725443446644,-14.86903143,0.00027397,2]
[337120256,1725443446654,-223.80704166,0.00027397,2]
[337120257,1725443446696,-43.91230381,0.00027397,2]
[337120258,1725443446706,-500.0,0.00027397,2]
[337120259,1725443446715,-500.0,0.00027397,2]
[337120260,1725443446725,-283.8478737,0.00027397,2]
[337120265,1725443531510,165.49960713,0.000201,2]
[337120266,1725443531538,84.42039287,0.000201,2]
[337120306,1725444332267,-413.0227386,0.00024658,2]
[337120307,1725444355095,-186.2043854,0.00024658,2]
[337120308,1725444355117,-503.42,0.00025,10]
[337120309,1725444355137,-425.05319733,0.00025204,2]
[337120310,1725444355159,-327.36797283,0.00025277,2]
[337120314,1725444425117,-2658.86268565,0.00025277,2]
[337120315,1725444426116,-155.4750129,0.00025277,2]
[337120316,1725444448132,-681.2147278,0.0002492,2]
[337120317,1725444453180,-363.14182317,0.00024658,2]
[337120592,1725444641000,-7.73924083,0.00024658,2]
[337120595,1725444641010,-101.6086139,0.0002492,2]
[337120597,1725444641020,-305.12380547,0.00025205,120]
[337120599,1725444641030,-21758.29432862,0.00025277,2]
[337120601,1725444641040,-181.133726,0.00025976,2]
[337120603,1725444641049,-1000.0,0.00026,12]
[337120605,1725444641059,-419.0,0.00027,2]
[337120607,1725444641069,-1000.0,0.00027267,2]
[337120610,1725444641085,-153.0,0.00027273,2]
[337120612,1725444641098,-153.0,0.00027273,2]
[337120614,1725444641108,-153.0,0.00027273,2]
[337120616,1725444641119,-153.0,0.00027273,2]
[337120618,1725444641128,-306.0,0.00027273,2]
[337120620,1725444641139,-153.0,0.00027273,2]
[337120622,1725444641149,-153.0,0.00027273,2]
[337120624,1725444641158,-153.0,0.00027273,2]
[337120626,1725444641168,-198.83547573,0.00027273,2]
[337120628,1725444641178,-235.91,0.00027346,3]
[337120630,1725444641189,-284.59784752,0.00027356,2]
[337120633,1725444641200,-500.0,0.00027356,2]
[337120635,1725444641212,-500.0,0.00027356,2]
[337120637,1725444641222,-165.74653519,0.00027356,2]
[337120639,1725444641233,-5822.14733101,0.00027356,15]
[337120641,1725444641244,-1334.49026689,0.00027356,15]
[337120643,1725444641254,-114024.6438867,0.00027357,3]
[337120899,1725444643672,-2078.67052554,0.00027256,2]
[337120901,1725444643682,-196.6,0.00027346,3]
[337120903,1725444643693,-31296.59492503,0.00027357,3]
[337122781,1725445053459,-538377.36295943,0.00034945,120]
[337122782,1725445053484,-100000.0,0.00034945,120]
[337122783,1725445053510,-200.0,0.00034945,30]
[337122784,1725445053535,-200.0,0.00034945,30]
[337122785,1725445053560,-200.0,0.00034945,30]
[337122786,1725445053586,-200.0,0.00034945,30]
[337122787,1725445053612,-200.0,0.00034945,30]
[337122788,1725445053638,-200.0,0.00034945,30]
[337122789,1725445053663,-250.7,0.00034945,30]
[337122790,1725445053687,-200.0,0.00034945,30]
[337122791,1725445053712,-200.0,0.00034945,30]
[337122792,1725445053736,-200.0,0.00034945,30]
[337122793,1725445053761,-200.0,0.00034945,30]
[337122794,1725445053785,-200.0,0.00034945,30]
[337122795,1725445053810,-200.0,0.00034945,30]
[337122796,1725445053835,-250.7,0.00034945,30]
[337122797,1725445053860,-200.0,0.00034945,30]
[337122798,1725445053886,-200.0,0.00034945,30]
[337122799,1725445053913,-200.0,0.00034945,30]
[337122800,1725445053937,-200.0,0.00034945,30]
[337122801,1725445053966,-200.0,0.00034945,30]
[337122802,1725445053991,-200.0,0.00034945,30]
[337122803,1725445054016,-250.7,0.00034945,30]
[337122804,1725445054042,-2499.999999,0.00034945,120]
[337122805,1725445054066,-200.0,0.00034945,30]
[337122806,1725445054091,-200.0,0.00034945,30]
[337122807,1725445054116,-200.0,0.00034945,30]
[337122808,1725445054139,-31516.68493067,0.00034945,30]
[337122809,1725445054163,-3223.0,0.00034945,120]
[337122810,1725445054188,-219430.8521109,0.00034945,35]
[337122811,1725445059645,-2595542.20013423,0.00034945,35]
[337122812,1725445059670,-349.099999,0.00034945,30]
[337122813,1725445059694,-1241.15738092,0.00034945,120]
[337122814,1725445059718,-10584.35162788,0.00034945,120]
[337122815,1725445059742,-200.0,0.00034945,30]
[337122816,1725445059767,-200.0,0.00034945,30]
[337122818,1725445093450,-667.24513345,0.00027346,15]
[337122819,1725445093477,-2911.07366551,0.00027346,15]
[337122820,1725445093525,-170.507214,0.00027397,7]
[337122821,1725445093550,-152.943172,0.00027397,7]
[337122822,1725445093576,-151.0,0.00027397,7]
[337122823,1725445093602,-151.0,0.00027397,7]
[337122824,1725445093626,-500.0,0.00027397,30]
[337122825,1725445093651,-151.0,0.00027397,7]
[337122826,1725445093675,-151.0,0.00027397,7]
[337122827,1725445093698,-151.0,0.00027397,7]
[337122828,1725445093721,-155.280652,0.00027397,7]
[337122829,1725445093745,-154.096096,0.00027397,7]
[337122830,1725445093769,-156.369484,0.00027397,7]
[337122831,1725445093792,-151.0,0.00027397,7]
[337122832,1725445093816,-362.643659,0.00027397,7]
[337122833,1725445093839,-362.643659,0.00027397,7]
[337122834,1725445093863,-158.518583,0.00027397,7]
[337122835,1725445093895,-158.450172,0.00027397,7]
[337122836,1725445093921,-151.0,0.00027397,7]
[337122837,1725445093946,-151.0,0.00027397,7]
[337122838,1725445093973,-258.20129471,0.00027397,7]
[337122839,1725445093999,-151.0,0.00027397,7]
[337122840,1725445094023,-151.0,0.00027397,7]
[337122841,1725445094048,-279.219755,0.00027397,7]
[337122842,1725445094072,-279.219755,0.00027397,7]
[337122843,1725445094095,-152.671603,0.00027397,7]
[337122844,1725445094118,-152.574795,0.00027397,7]
[337122845,1725445094146,-151.0,0.00027397,7]
[337122846,1725445094170,-151.0,0.00027397,7]
[337122847,1725445094193,-151.0,0.00027397,7]
[337122848,1725445094219,-151.0,0.00027397,7]
[337122849,1725445094246,-151.0,0.00027397,7]